[Event "VIII Iberoamericano Mexico 2022"]
[Site "Mexico City"]
[Date "2022.02.19"]
[Round "9.27"]
[White "Medina Diaz, Rafael Alejandro"]
[Black "Arvizu Borchardt, David Ivan"]
[Result "1-0"]
[ECO "B22"]
[WhiteElo "2287"]
[BlackElo "1987"]
[Annotator "NA"]
[PlyCount "79"]
[EventDate "2022.02.12"]
[EventType "swiss"]
[EventCountry "MEX"]
[SourceTitle "playchess.com"]
[Source "ChessBase"]
[SourceQuality "1"]
[TimeControl "5400+30"]

1. e4 {[%emt 0:00:02]} c5 {[%emt 0:00:06]} 2. c3 {[%emt 0:00:05]} Nf6 {[%emt 0:00:38]} 3. e5 {[%emt 0:00:05]} Nd5 {[%emt 0:00:05]} 4. d4 {[%emt 0:00:03]} cxd4 {[%emt 0:00:47]} 5. cxd4 {[%emt 0:00:06]} d6 {[%emt 0:01:10]} 6. Nf3 {[%emt 0:00:12]} e6 {[%emt 0:00:37]} 7. Nc3 {[%emt 0:10:33]} Nc6 {[%emt 0:05:39]} 8. exd6 {[%emt 0:00:31]} Bxd6 {[%emt 0:00:12]} 9. Bd3 {[%emt 0:00:24]} O-O {[%emt 0:04:52]} 10. O-O {[%emt 0:00:17]} h6 {[%emt 0:05:15]} 11. Re1 {[%emt 0:00:25]} b6 {[%emt 0:05:20]} 12. Bb1 {[%emt 0:10:12]} Ncb4 $14 {[%emt 0:05:30]} (12... Nf6 $11) 13. a3 {[%emt 0:10:47]} Nxc3 {[%emt 0:00:11]} 14. bxc3 {[%emt 0:00:04]} Nd5 {[%emt 0:00:07]} 15. Qd3 {[%emt 0:00:11]} Nf6 {[%emt 0:00:24]} 16. Ne5 {[%emt 0:00:16]} Bb7 {[%emt 0:08:30]} 17. Qh3 {[%emt 0:15:26]} Re8 {[%emt 0:01:12]} 18. Bd2 {[%emt 0:16:14]} Bf8 {[%emt 0:12:42]} 19. Re3 {[%emt 0:01:27]} Qd5 {[%emt 0:05:49]} 20. Rg3 {[%emt 0:02:53]} Qb3 {[%emt 0:00:51]} 21. Bd3 {[%emt 0:01:55]} Qb2 {[%emt 0:03:03]} 22. Rd1 {[%emt 0:01:37]} Be4 {[%emt 0:02:52]} 23. Qxh6 {[%emt 0:11:13]} Bxd3 {[%emt 0:00:08]} 24. Qxf6 {[%emt 0:00:25]} Bg6 {[%emt 0:00:07]} 25. Qf3 {[%emt 0:01:57]} Bf5 {[%emt 0:02:10]} 26. Qb7 {[%emt 0:07:49]} Be7 {[%emt 0:01:01]} 27. Bh6 {[%emt 0:00:41]} g6 {[%emt 0:00:50]} 28. Re3 {[%emt 0:02:51]} Qxa3 {[%emt 0:01:17]} 29. g4 {[%emt 0:00:44]} Bc2 {[%emt 0:00:18]} 30. Rde1 {[%emt 0:00:24]} Qd6 {[%emt 0:02:59]} 31. Qf3 {[%emt 0:01:59]} f6 {[%emt 0:02:00]} 32. Nxg6 {[%emt 0:01:43]} Bxg6 {[%emt 0:00:12]} 33. Rxe6 {[%emt 0:00:06]} Bf8 {[%emt 0:01:24]} 34. Qxf6 {[%emt 0:00:49]} Rxe6 {[%emt 0:05:43]} 35. Rxe6 {[%emt 0:00:01]} Qxe6 {[%emt 0:01:17]} 36. Qxe6+ {[%emt 0:00:01]} Bf7 {[%emt 0:00:11]} 37. Qc6 {[%emt 0:00:51]} Re8 {[%emt 0:01:15]} 38. Bxf8 {[%emt 0:00:17]} Kxf8 {[%emt 0:00:14]} 39. h4 {[%emt 0:00:10]} Re1+ {[%emt 0:00:16]} 40. Kh2 {[%emt 0:00:04]} 1-0

[Event "VIII Iberoamericano Mexico 2022"]
[Site "Mexico City"]
[Date "2022.02.19"]
[Round "9.28"]
[White "Miranda Llanes, Yerisbel"]
[Black "Ortiz Verdezoto, Anahi"]
[Result "1-0"]
[ECO "E43"]
[WhiteElo "2261"]
[BlackElo "2047"]
[Annotator "NA"]
[PlyCount "103"]
[EventDate "2022.02.12"]
[EventType "swiss"]
[EventCountry "MEX"]
[SourceTitle "playchess.com"]
[Source "ChessBase"]
[SourceQuality "1"]
[TimeControl "5400+30"]

1. d4 {[%emt 0:00:15]} Nf6 {[%emt 0:00:12]} 2. c4 {[%emt 0:00:04]} e6 {[%emt 0:00:13]} 3. Nc3 {[%emt 0:00:10]} Bb4 {[%emt 0:00:14]} 4. e3 {[%emt 0:00:09]} b6 {[%emt 0:00:41]} 5. Bd2 {[%emt 0:00:31]} Bb7 {[%emt 0:01:12]} 6. Nf3 {[%emt 0:00:13]} O-O {[%emt 0:02:20]} 7. Bd3 {[%emt 0:00:04]} c5 {[%emt 0:01:44]} 8. a3 {[%emt 0:01:28]} cxd4 {[%emt 0:05:47]} 9. axb4 {[%emt 0:04:28]} dxc3 {[%emt 0:00:06]} 10. Bxc3 {[%emt 0:00:06]} d5 $14 {[%emt 0:04:25]} 11. b3 {[%emt 0:00:49]} Nbd7 {[%emt 0:01:56]} 12. O-O {[%emt 0:01:25]} Qe7 {[%emt 0:00:18]} 13. Qe2 {[%emt 0:05:55]} Ne4 {[%emt 0:08:49]} 14. Bb2 {[%emt 0:01:47]} Ndf6 {[%emt 0:07:03]} 15. Ne5 {[%emt 0:05:06]} Nd7 {[%emt 0:10:49]} 16. Nf3 {[%emt 0:06:34]} Rfc8 {[%emt 0:02:11]} 17. Ba3 {[%emt 0:00:27]} Qf6 {[%emt 0:04:55]} 18. Rfc1 {[%emt 0:04:22]} dxc4 {[%emt 0:03:36]} 19. bxc4 {[%emt 0:00:47]} a5 {[%emt 0:02:10]} 20. Bb2 {[%emt 0:03:02]} Qe7 {[%emt 0:01:16]} 21. bxa5 {[%emt 0:01:13]} bxa5 {[%emt 0:00:23]} 22. Qc2 {[%emt 0:08:44]} f5 {[%emt 0:02:42]} 23. Nd4 {[%emt 0:02:27]} Nec5 {[%emt 0:02:19]} 24. Bf1 {[%emt 0:01:24]} a4 {[%emt 0:02:36]} 25. Ba3 {[%emt 0:01:42]} Qf6 {[%emt 0:00:49]} 26. Ra2 {[%emt 0:02:27]} Ba6 {[%emt 0:06:58]} 27. Rd1 {[%emt 0:04:21]} Rab8 {[%emt 0:00:07]} 28. Nb5 {[%emt 0:03:08]} Bxb5 {[%emt 0:08:06]} 29. cxb5 {[%emt 0:00:07]} Nb3 {[%emt 0:00:29]} 30. Qb2 {[%emt 0:02:22]} Qf7 {[%emt 0:00:50]} 31. Bd6 {[%emt 0:01:01]} Ra8 {[%emt 0:00:01]} 32. Be2 {[%emt 0:14:45]} Nb6 {[%emt 0:00:41]} 33. Bf3 {[%emt 0:00:37]} Nc4 {[%emt 0:00:42]} 34. Qb1 {[%emt 0:03:40]} Ra7 {[%emt 0:06:14]} 35. Bb4 {[%emt 0:01:30]} h6 {[%emt 0:01:44]} 36. Rc2 {[%emt 0:01:50]} Rac7 {[%emt 0:01:13]} 37. Qa2 {[%emt 0:01:43]} Nb6 {[%emt 0:04:57]} 38. Bc6 {[%emt 0:00:32]} Ra7 {[%emt 0:02:12]} 39. h3 {[%emt 0:02:20]} Kh7 {[%emt 0:00:02]} 40. Qa3 {[%emt 0:02:24]} Rac7 {[%emt 0:02:35]} 41. Bd6 {[%emt 0:02:18]} Rd8 {[%emt 0:00:01]} 42. Be8 {[%emt 0:05:00]} Qxe8 {[%emt 0:02:26]} 43. Rxc7 {[%emt 0:00:06]} Rc8 {[%emt 0:02:48]} 44. Rb7 {[%emt 0:03:06]} Nd5 {[%emt 0:01:04]} 45. Qxa4 {[%emt 0:01:13]} Nc5 {[%emt 0:00:20]} 46. Bxc5 {[%emt 0:00:42]} Rxc5 {[%emt 0:00:15]} 47. Rxg7+ {[%emt 0:02:11]} Kxg7 {[%emt 0:00:01]} 48. Qd4+ {[%emt 0:00:02]} Kg6 {[%emt 0:00:27]} 49. Qxc5 {[%emt 0:00:06]} Qb8 {[%emt 0:00:26]} 50. Qc6 {[%emt 0:01:05]} Kf7 {[%emt 0:00:21]} 51. Rxd5 {[%emt 0:00:56]} exd5 {[%emt 0:00:02]} 52. Qxd5+ {[%emt 0:00:06]} 1-0

[Event "VIII Iberoamericano Mexico 2022"]
[Site "Mexico City"]
[Date "2022.02.19"]
[Round "9.29"]
[White "Rosales Campos, Paul"]
[Black "Frey Beckman, Kenneth"]
[Result "0-1"]
[ECO "C48"]
[WhiteElo "2039"]
[BlackElo "2242"]
[Annotator "NA"]
[PlyCount "70"]
[EventDate "2022.02.12"]
[EventType "swiss"]
[EventCountry "MEX"]
[SourceTitle "playchess.com"]
[Source "ChessBase"]
[SourceQuality "1"]
[TimeControl "5400+30"]

1. e4 {[%emt 0:00:15]} e5 {[%emt 0:00:19]} 2. Nf3 {[%emt 0:00:46]} Nc6 {[%emt 0:00:14]} 3. Nc3 {[%emt 0:00:40]} Nf6 {[%emt 0:00:48]} 4. Bb5 {[%emt 0:00:34]} Nd4 {[%emt 0:00:19]} 5. O-O {[%emt 0:00:44]} Nxb5 {[%emt 0:04:25]} 6. Nxb5 {[%emt 0:00:31]} c6 {[%emt 0:01:38]} 7. Nc3 {[%emt 0:00:27]} d6 {[%emt 0:00:22]} 8. d4 {[%emt 0:00:36]} Qc7 {[%emt 0:03:37]} 9. Bg5 {[%emt 0:01:25]} Be7 {[%emt 0:01:35]} 10. h3 {[%emt 0:00:49]} h6 {[%emt 0:00:32]} 11. Bxf6 {[%emt 0:09:11]} Bxf6 {[%emt 0:00:14]} 12. d5 {[%emt 0:01:25]} O-O {[%emt 0:00:38]} 13. Qd3 {[%emt 0:00:41]} Be7 {[%emt 0:11:07]} 14. Rfd1 {[%emt 0:04:20]} c5 {[%emt 0:04:55]} 15. Qc4 {[%emt 0:12:13]} a6 {[%emt 0:04:17]} 16. a4 {[%emt 0:03:36]} b6 {[%emt 0:03:36]} 17. Rab1 {[%emt 0:22:26]} Bd8 {[%emt 0:06:00]} 18. Rd2 {[%emt 0:05:30]} f5 {[%emt 0:05:12]} 19. Re1 {[%emt 0:05:30]} f4 {[%emt 0:09:05]} 20. b4 {[%emt 0:02:35]} cxb4 {[%emt 0:06:51]} 21. Qxb4 {[%emt 0:00:04]} Bd7 {[%emt 0:00:27]} 22. Rd3 {[%emt 0:01:16]} Rc8 {[%emt 0:01:02]} 23. Rb1 {[%emt 0:00:54]} g5 {[%emt 0:00:30]} 24. Nd2 {[%emt 0:01:26]} h5 {[%emt 0:00:42]} 25. Rb2 {[%emt 0:02:52]} g4 {[%emt 0:01:20]} 26. hxg4 {[%emt 0:00:58]} hxg4 {[%emt 0:00:10]} 27. Ne2 {[%emt 0:09:26]} Rf6 {[%emt 0:01:07]} 28. Rc3 {[%emt 0:02:23]} Qb8 {[%emt 0:00:38]} 29. Rxc8 {[%emt 0:05:02]} Qxc8 {[%emt 0:01:00]} 30. Nc4 {[%emt 0:00:15]} Bc7 {[%emt 0:08:07]} 31. Nxb6 {[%emt 0:00:58]} Qd8 {[%emt 0:02:21]} 32. Nxd7 {[%emt 0:00:16]} Qxd7 {[%emt 0:00:07]} 33. Qb7 {[%emt 0:01:18]} Rf7 {[%emt 0:01:55]} 34. Qc6 {[%emt 0:01:05]} Qe7 {[%emt 0:00:23]} 35. Rb7 {[%emt 0:01:15]} Kg7 {[%emt 0:22:27]} 0-1

[Event "VIII Iberoamericano Mexico 2022"]
[Site "Mexico City"]
[Date "2022.02.19"]
[Round "9.30"]
[White "Blanco Fernandez, Alvaro"]
[Black "Paredes Guzman, Francisco Javier"]
[Result "0-1"]
[ECO "E73"]
[WhiteElo "2216"]
[BlackElo "1891"]
[Annotator "NA"]
[PlyCount "69"]
[EventDate "2022.02.12"]
[EventType "swiss"]
[EventCountry "MEX"]
[SourceTitle "playchess.com"]
[Source "ChessBase"]
[SourceQuality "1"]
[TimeControl "5400+30"]

1. d4 {[%emt 0:00:09]} Nf6 {[%emt 0:00:04]} 2. c4 {[%emt 0:00:09]} g6 {[%emt 0:00:04]} 3. Nc3 {[%emt 0:00:11]} Bg7 {[%emt 0:00:13]} 4. e4 {[%emt 0:00:06]} d6 $14 {[%emt 0:00:02]} 5. Be2 {[%emt 0:00:12]} O-O {[%emt 0:00:08]} 6. Be3 {[%emt 0:00:19]} e5 {[%emt 0:00:04]} 7. d5 {[%emt 0:00:06]} Na6 {[%emt 0:00:07]} 8. g4 {[%emt 0:00:10]} Nc5 {[%emt 0:00:08]} 9. f3 {[%emt 0:00:08]} a5 {[%emt 0:00:28]} 10. h4 {[%emt 0:00:16]} h5 {[%emt 0:00:07]} 11. g5 {[%emt 0:00:05]} Nh7 {[%emt 0:01:00]} 12. Qc2 {[%emt 0:00:10]} c6 {[%emt 0:07:13]} 13. O-O-O {[%emt 0:00:44]} Qc7 {[%emt 0:00:41]} 14. Bxc5 {[%emt 0:04:37]} dxc5 {[%emt 0:00:04]} 15. d6 {[%emt 0:00:09]} Qd8 {[%emt 0:00:21]} 16. Na4 {[%emt 0:00:48]} b6 {[%emt 0:02:29]} 17. Qb3 {[%emt 0:03:07]} Ra6 {[%emt 0:00:49]} 18. Bf1 {[%emt 0:01:08]} Re8 {[%emt 0:02:17]} 19. d7 {[%emt 0:05:51]} Bxd7 {[%emt 0:00:10]} 20. Bh3 {[%emt 0:00:02]} Nf8 {[%emt 0:00:33]} 21. Ne2 {[%emt 0:03:53]} Re7 {[%emt 0:06:58]} 22. Bxd7 {[%emt 0:03:42]} Rxd7 {[%emt 0:13:36]} 23. Rxd7 {[%emt 0:03:25]} Nxd7 {[%emt 0:00:04]} 24. Rd1 {[%emt 0:00:07]} Qc7 {[%emt 0:00:10]} 25. Qd3 {[%emt 0:02:13]} Ra7 {[%emt 0:00:32]} 26. Kb1 {[%emt 0:00:20]} Bf8 {[%emt 0:00:34]} 27. Nac3 {[%emt 0:01:10]} Be7 {[%emt 0:00:26]} 28. Qd2 {[%emt 0:01:13]} Nf8 {[%emt 0:02:28]} 29. f4 {[%emt 0:00:22]} exf4 {[%emt 0:00:10]} 30. Nxf4 {[%emt 0:00:02]} Qe5 {[%emt 0:01:40]} 31. Nd3 {[%emt 0:02:16]} Qd4 {[%emt 0:01:21]} 32. Qf4 {[%emt 0:00:24]} Qxc4 {[%emt 0:03:08]} 33. e5 {[%emt 0:04:39]} Qxf4 {[%emt 0:03:18]} 34. Nxf4 {[%emt 0:00:02]} Rd7 {[%emt 0:00:19]} 35. Re1 {[%emt 0:01:47]} 0-1

[Event "VIII Iberoamericano Mexico 2022"]
[Site "Mexico City"]
[Date "2022.02.19"]
[Round "9.31"]
[White "Chinchilla Miranda, Eugenio"]
[Black "Francisco Cruz, Yahir Alberto"]
[Result "1-0"]
[ECO "D97"]
[WhiteElo "2193"]
[BlackElo "1949"]
[Annotator "NA"]
[PlyCount "77"]
[EventDate "2022.02.12"]
[EventType "swiss"]
[EventCountry "MEX"]
[SourceTitle "playchess.com"]
[Source "ChessBase"]
[SourceQuality "1"]
[TimeControl "5400+30"]

1. d4 {[%emt 0:00:29]} Nf6 {[%emt 0:05:00]} 2. c4 {[%emt 0:00:14]} g6 {[%emt 0:05:08]} 3. Nc3 {[%emt 0:00:06]} d5 {[%emt 0:00:08]} 4. Nf3 {[%emt 0:00:21]} Bg7 {[%emt 0:00:06]} 5. Qb3 {[%emt 0:00:06]} dxc4 {[%emt 0:00:23]} 6. Qxc4 {[%emt 0:00:03]} O-O {[%emt 0:00:10]} 7. e4 {[%emt 0:00:05]} a6 {[%emt 0:02:17]} 8. Be2 {[%emt 0:00:29]} b5 {[%emt 0:00:14]} 9. Qb3 {[%emt 0:00:02]} Nc6 {[%emt 0:00:41]} 10. e5 {[%emt 0:05:33]} Be6 {[%emt 0:00:48]} 11. exf6 {[%emt 0:00:35]} Bxb3 {[%emt 0:00:35]} 12. fxg7 {[%emt 0:00:04]} Kxg7 {[%emt 0:02:20]} 13. axb3 {[%emt 0:00:03]} Nxd4 {[%emt 0:02:50]} 14. Nxd4 {[%emt 0:00:08]} Qxd4 {[%emt 0:00:04]} 15. O-O {[%emt 0:00:21]} Qb4 {[%emt 0:02:33]} 16. Bf3 {[%emt 0:03:41]} Rad8 {[%emt 0:02:47]} 17. Rxa6 {[%emt 0:00:17]} Qxb3 {[%emt 0:00:10]} 18. Rc6 {[%emt 0:01:58]} Rc8 {[%emt 0:26:16]} 19. Re1 {[%emt 0:05:41]} Rfd8 {[%emt 0:02:23]} 20. h4 {[%emt 0:02:48]} e6 {[%emt 0:01:08]} 21. h5 {[%emt 0:01:16]} Rd6 {[%emt 0:00:40]} 22. Rc5 {[%emt 0:00:50]} b4 {[%emt 0:08:08]} 23. Bd1 {[%emt 0:02:16]} Rxd1 {[%emt 0:00:06]} 24. h6+ {[%emt 0:00:40]} Kf8 {[%emt 0:00:36]} 25. Nxd1 {[%emt 0:00:15]} f6 {[%emt 0:01:34]} 26. Ne3 {[%emt 0:01:25]} Ke7 {[%emt 0:04:02]} 27. Nc2 {[%emt 0:08:31]} Kd6 {[%emt 0:01:48]} 28. Rc6+ {[%emt 0:06:50]} Kd7 {[%emt 0:02:00]} 29. Rd1+ {[%emt 0:02:02]} Ke7 {[%emt 0:00:10]} 30. Be3 {[%emt 0:00:38]} Rd8 {[%emt 0:04:29]} 31. Rxc7+ {[%emt 0:00:16]} Ke8 {[%emt 0:00:06]} 32. Ra1 {[%emt 0:05:54]} Qxb2 {[%emt 0:04:39]} 33. Raa7 {[%emt 0:06:15]} Rd1+ {[%emt 0:08:53]} 34. Kh2 {[%emt 0:00:48]} Qe5+ {[%emt 0:00:05]} 35. f4 {[%emt 0:00:27]} Qh5+ {[%emt 0:00:44]} 36. Kg3 {[%emt 0:00:10]} g5 {[%emt 0:00:22]} 37. Rg7 {[%emt 0:12:21]} Qh4+ {[%emt 0:00:42]} 38. Kf3 {[%emt 0:00:18]} Qh5+ {[%emt 0:00:12]} 39. Ke4 {[%emt 0:00:50]} 1-0

[Event "VIII Iberoamericano Mexico 2022"]
[Site "Mexico City"]
[Date "2022.02.19"]
[Round "9.32"]
[White "Gongora Montes, Benjamin"]
[Black "Montes Orozco, Miguel Angel"]
[Result "1/2-1/2"]
[ECO "D02"]
[WhiteElo "2157"]
[BlackElo "1914"]
[Annotator "NA"]
[PlyCount "81"]
[EventDate "2022.02.12"]
[EventType "swiss"]
[EventCountry "MEX"]
[SourceTitle "playchess.com"]
[Source "ChessBase"]
[SourceQuality "1"]
[TimeControl "5400+30"]

1. d4 {[%emt 0:00:02]} d5 {[%emt 0:02:03]} 2. Nf3 {[%emt 0:00:07]} Nf6 {[%emt 0:00:05]} 3. g3 {[%emt 0:00:04]} e6 {[%emt 0:00:05]} 4. Bg2 {[%emt 0:00:02]} Be7 {[%emt 0:00:10]} 5. O-O {[%emt 0:00:07]} O-O {[%emt 0:00:03]} 6. b3 {[%emt 0:00:04]} c5 {[%emt 0:04:15]} 7. dxc5 {[%emt 0:00:05]} Bxc5 {[%emt 0:00:27]} 8. c4 {[%emt 0:00:06]} Nc6 {[%emt 0:17:05]} 9. Bb2 {[%emt 0:04:12]} d4 {[%emt 0:01:07]} 10. a3 {[%emt 0:01:07]} a5 {[%emt 0:00:30]} 11. b4 {[%emt 0:04:15]} axb4 {[%emt 0:00:07]} 12. axb4 {[%emt 0:00:06]} Rxa1 {[%emt 0:01:30]} 13. Bxa1 {[%emt 0:00:04]} Bxb4 {[%emt 0:02:59]} 14. Nxd4 {[%emt 0:00:10]} Bd7 {[%emt 0:00:47]} 15. Qb3 {[%emt 0:01:40]} Qb6 {[%emt 0:07:56]} 16. Nxc6 {[%emt 0:10:01]} Bxc6 {[%emt 0:00:07]} 17. Bxf6 {[%emt 0:00:18]} gxf6 {[%emt 0:00:08]} 18. Bxc6 {[%emt 0:03:33]} bxc6 {[%emt 0:00:07]} 19. Nc3 {[%emt 0:00:08]} Rb8 {[%emt 0:05:43]} 20. Rb1 {[%emt 0:00:22]} Bc5 {[%emt 0:01:09]} 21. Qc2 {[%emt 0:00:34]} Qa7 {[%emt 0:00:30]} 22. Rxb8+ {[%emt 0:00:05]} Qxb8 {[%emt 0:00:03]} 23. Qe4 {[%emt 0:10:03]} Qb4 {[%emt 0:01:35]} 24. Qd3 {[%emt 0:02:48]} Kg7 {[%emt 0:02:15]} 25. Kg2 {[%emt 0:02:18]} f5 {[%emt 0:06:38]} 26. e4 {[%emt 0:05:08]} Qb2 {[%emt 0:00:18]} 27. Ne2 {[%emt 0:00:05]} fxe4 {[%emt 0:01:02]} 28. Qxe4 {[%emt 0:00:05]} Bb6 {[%emt 0:06:09]} 29. h4 {[%emt 0:00:46]} h6 {[%emt 0:01:35]} 30. Qg4+ {[%emt 0:01:13]} Kf8 {[%emt 0:00:10]} 31. Qe4 {[%emt 0:04:02]} Kg7 {[%emt 0:00:41]} 32. h5 {[%emt 0:00:31]} Ba7 {[%emt 0:01:06]} 33. g4 {[%emt 0:00:43]} Kf8 {[%emt 0:05:10]} 34. Qd3 {[%emt 0:04:24]} Kg7 {[%emt 0:01:35]} 35. Kg3 {[%emt 0:07:40]} Bb8+ {[%emt 0:01:36]} 36. Kg2 {[%emt 0:01:43]} Ba7 {[%emt 0:00:10]} 37. Qe4 {[%emt 0:07:59]} Kf8 {[%emt 0:05:21]} 38. Kg3 {[%emt 0:02:03]} Qb3+ {[%emt 0:03:13]} 39. Kg2 {[%emt 0:00:11]} Qb2 {[%emt 0:00:24]} 40. Kg3 {[%emt 0:00:17]} Qb3+ {[%emt 0:00:06]} 41. Kg2 {[%emt 0:00:09]} 1/2-1/2

[Event "VIII Iberoamericano Mexico 2022"]
[Site "Mexico City"]
[Date "2022.02.19"]
[Round "9.33"]
[White "Luna Javier, Edgar Froylan"]
[Black "Encinas Varela, David"]
[Result "1-0"]
[ECO "D79"]
[WhiteElo "2148"]
[BlackElo "1862"]
[Annotator "NA"]
[PlyCount "59"]
[EventDate "2022.02.12"]
[EventType "swiss"]
[EventCountry "MEX"]
[SourceTitle "playchess.com"]
[Source "ChessBase"]
[SourceQuality "1"]
[TimeControl "5400+30"]

1. Nf3 {[%emt 0:00:04]} Nf6 {[%emt 0:00:11]} 2. g3 {[%emt 0:00:10]} g6 {[%emt 0:00:00]} 3. Bg2 {[%emt 0:00:08]} Bg7 {[%emt 0:00:01]} 4. d4 {[%emt 0:00:48]} O-O {[%emt 0:00:06]} 5. O-O {[%emt 0:00:03]} d5 {[%emt 0:00:36]} 6. c4 {[%emt 0:00:25]} c6 {[%emt 0:00:17]} 7. cxd5 {[%emt 0:00:08]} cxd5 {[%emt 0:00:11]} 8. Ne5 {[%emt 0:00:28]} Ng4 {[%emt 0:04:52]} 9. f4 {[%emt 0:13:38]} Nxe5 {[%emt 0:01:13]} 10. fxe5 {[%emt 0:00:17]} Be6 {[%emt 0:00:11]} 11. Nc3 {[%emt 0:01:48]} Qd7 {[%emt 0:01:41]} 12. Bf4 {[%emt 0:11:33]} Rd8 {[%emt 0:01:10]} 13. Na4 {[%emt 0:12:48]} b6 {[%emt 0:01:10]} 14. Nc3 {[%emt 0:00:25]} Nc6 {[%emt 0:03:56]} 15. Qd2 {[%emt 0:08:06]} Bh3 {[%emt 0:02:08]} 16. Bxh3 {[%emt 0:03:17]} Qxh3 {[%emt 0:00:29]} 17. Rac1 {[%emt 0:00:27]} Rac8 {[%emt 0:01:06]} 18. Bg5 {[%emt 0:00:52]} f6 {[%emt 0:07:10]} 19. exf6 {[%emt 0:01:26]} exf6 {[%emt 0:00:38]} 20. Bxf6 {[%emt 0:01:30]} Bh6 {[%emt 0:00:27]} 21. Bg5 {[%emt 0:01:28]} Bxg5 {[%emt 0:00:52]} 22. Qxg5 {[%emt 0:00:02]} Nxd4 {[%emt 0:00:21]} 23. Rcd1 {[%emt 0:02:52]} Ne6 {[%emt 0:01:52]} 24. Qe5 {[%emt 0:00:47]} Nc7 {[%emt 0:06:32]} 25. Nxd5 {[%emt 0:06:02]} Nxd5 {[%emt 0:01:22]} 26. Rxd5 {[%emt 0:01:37]} Re8 {[%emt 0:00:41]} 27. Qd4 {[%emt 0:04:20]} Rxe2 {[%emt 0:11:10]} 28. Rd8+ {[%emt 0:00:07]} Re8 {[%emt 0:00:09]} 29. Qd5+ {[%emt 0:00:08]} Kh8 {[%emt 0:00:49]} 30. Qe5+ {[%emt 0:00:05]} 1-0

[Event "VIII Iberoamericano Mexico 2022"]
[Site "Mexico City"]
[Date "2022.02.19"]
[Round "9.34"]
[White "Torres Rivas, Felipe de Jesus"]
[Black "Garcia de Dios, Jose Antonio"]
[Result "1/2-1/2"]
[ECO "E67"]
[WhiteElo "1845"]
[BlackElo "2145"]
[Annotator "NA"]
[PlyCount "113"]
[EventDate "2022.02.12"]
[EventType "swiss"]
[EventCountry "MEX"]
[SourceTitle "playchess.com"]
[Source "ChessBase"]
[SourceQuality "1"]
[TimeControl "5400+30"]

1. d4 {[%emt 0:10:33]} Nf6 {[%emt 0:00:27]} 2. Nf3 {[%emt 0:01:23]} g6 {[%emt 0:00:38]} 3. c4 {[%emt 0:00:15]} Bg7 {[%emt 0:00:24]} 4. g3 {[%emt 0:00:15]} O-O {[%emt 0:00:25]} 5. Bg2 {[%emt 0:00:04]} d6 {[%emt 0:00:20]} 6. O-O {[%emt 0:00:25]} Nbd7 {[%emt 0:00:29]} 7. Nc3 {[%emt 0:02:33]} e5 {[%emt 0:00:47]} 8. Bg5 {[%emt 0:01:28]} h6 {[%emt 0:03:52]} 9. Bxf6 {[%emt 0:00:57]} Bxf6 {[%emt 0:00:18]} 10. e3 {[%emt 0:00:28]} Bg7 {[%emt 0:02:47]} 11. Qb3 {[%emt 0:01:02]} exd4 {[%emt 0:02:36]} 12. Nxd4 {[%emt 0:01:21]} Nc5 {[%emt 0:00:59]} 13. Qc2 {[%emt 0:00:18]} a5 {[%emt 0:00:44]} 14. Rfd1 {[%emt 0:06:36]} c6 {[%emt 0:04:46]} 15. Rd2 {[%emt 0:03:51]} Qc7 {[%emt 0:08:55]} 16. h4 {[%emt 0:01:28]} h5 {[%emt 0:08:13]} 17. Qd1 {[%emt 0:05:17]} Re8 {[%emt 0:04:13]} 18. Rc1 {[%emt 0:04:37]} a4 {[%emt 0:02:57]} 19. Rb1 {[%emt 0:03:45]} Bg4 {[%emt 0:15:01]} 20. Bf3 {[%emt 0:01:22]} Be6 {[%emt 0:01:08]} 21. Nxe6 {[%emt 0:03:25]} Rxe6 {[%emt 0:00:02]} 22. Ne2 {[%emt 0:00:45]} Ne4 {[%emt 0:06:13]} 23. Bxe4 {[%emt 0:05:18]} Rxe4 {[%emt 0:00:06]} 24. Qc2 {[%emt 0:00:09]} Ree8 {[%emt 0:36:10]} 25. Rbd1 {[%emt 0:00:30]} a3 {[%emt 0:00:00]} 26. bxa3 {[%emt 0:03:05]} Rxa3 {[%emt 0:00:00]} 27. Rxd6 {[%emt 0:00:08]} Qa5 {[%emt 0:00:00]} 28. Nf4 {[%emt 0:04:04]} Rxa2 {[%emt 0:00:00]} 29. Qd3 {[%emt 0:02:59]} Ra1 {[%emt 0:00:00]} 30. Rd7 {[%emt 0:04:27]} Rxd1+ {[%emt 0:00:00]} 31. Qxd1 {[%emt 0:00:04]} Qb4 {[%emt 0:00:00]} 32. Qd3 {[%emt 0:05:03]} Ra8 {[%emt 0:00:00]} 33. Rd8+ {[%emt 0:08:27]} Rxd8 {[%emt 0:00:00]} 34. Qxd8+ {[%emt 0:00:03]} Bf8 {[%emt 0:00:00]} 35. Qd3 {[%emt 0:00:41]} Qc5 {[%emt 0:00:00]} 36. Kg2 {[%emt 0:03:14]} b5 {[%emt 0:00:00]} 37. cxb5 {[%emt 0:02:19]} cxb5 {[%emt 0:00:00]} 38. Qd5 {[%emt 0:01:00]} Qb6 {[%emt 0:00:26]} 39. Ne2 {[%emt 0:05:16]} Bg7 {[%emt 0:01:03]} 40. Nc1 {[%emt 0:01:43]} b4 {[%emt 0:00:23]} 41. Nb3 {[%emt 0:00:07]} Bc3 {[%emt 0:02:40]} 42. Qa8+ {[%emt 0:06:19]} Kg7 {[%emt 0:00:33]} 43. Qd5 {[%emt 0:00:04]} Qa7 {[%emt 0:00:43]} 44. Nc5 {[%emt 0:04:21]} Qa1 {[%emt 0:02:38]} 45. Ne4 {[%emt 0:00:55]} Be1 {[%emt 0:01:23]} 46. Qb3 {[%emt 0:00:34]} Qe5 {[%emt 0:00:24]} 47. Ng5 {[%emt 0:00:15]} Qf5 {[%emt 0:00:24]} 48. Nf3 {[%emt 0:00:23]} Bc3 {[%emt 0:00:10]} 49. Ng5 {[%emt 0:00:21]} Qd7 {[%emt 0:00:47]} 50. Qc4 {[%emt 0:01:01]} Qb7+ {[%emt 0:00:22]} 51. Qe4 {[%emt 0:00:24]} Qa7 {[%emt 0:00:57]} 52. Qd5 {[%emt 0:00:07]} Bf6 {[%emt 0:00:23]} 53. Ne4 {[%emt 0:00:11]} Qb6 {[%emt 0:00:30]} 54. Nd6 {[%emt 0:00:30]} Kh6 {[%emt 0:00:41]} 55. Nxf7+ {[%emt 0:00:54]} Kh7 {[%emt 0:00:01]} 56. Ng5+ {[%emt 0:00:44]} Bxg5 {[%emt 0:00:11]} 57. Qf7+ {[%emt 0:01:12]} 1/2-1/2